fUST/lending_fUST_20240429
["ID","MTS","AMOUNT","RATE_DAILY","PERIOD"]
[324838693,1714367441604,-500.0,0.00013698,2]
[324838696,1714367441613,-1086.91,0.00013698,2]
[324838698,1714367441623,-500.0,0.00013698,2]
[324838700,1714367441632,-220.48818135,0.00013698,2]
[324838702,1714367441641,-500.0,0.00013698,2]
[324838704,1714367441651,-500.0,0.00013698,2]
[324838706,1714367441660,-500.0,0.00013698,2]
[324838708,1714367441668,-500.0,0.00013698,2]
[324838709,1714367441677,-183.13606393,0.00013698,2]
[324838712,1714367441687,-500.0,0.00013698,2]
[324838713,1714367441695,-500.0,0.00013698,2]
[324838715,1714367441704,-500.0,0.00013698,2]
[324838718,1714367441714,-500.0,0.00013698,2]
[324838720,1714367441723,-500.0,0.00013698,2]
[324838722,1714367441732,-500.0,0.00013698,2]
[324838723,1714367441741,-500.0,0.00013698,2]
[324838725,1714367441750,-500.0,0.00013698,2]
[324838727,1714367441759,-500.0,0.00013698,2]
[324838729,1714367441768,-542.4549262,0.00013698,2]
[324838731,1714367441777,-500.0,0.00013698,2]
[324838733,1714367441786,-500.0,0.00013698,2]
[324838736,1714367441796,-896.17,0.00013698,2]
[324838737,1714367441805,-500.0,0.00013698,2]
[324838739,1714367441814,-500.0,0.00013698,2]
[324838741,1714367441823,-500.0,0.00013698,2]
[324838743,1714367441832,-500.0,0.00013698,2]
[324838745,1714367441841,-500.0,0.00013698,2]
[324838747,1714367441850,-500.0,0.00013698,2]
[324838750,1714367441860,-589.51,0.00013698,2]
[324838752,1714367441869,-500.0,0.00013698,2]
[324838754,1714367441879,-500.0,0.00013698,2]
[324838756,1714367441888,-500.0,0.00013698,2]
[324838757,1714367441897,-500.0,0.00013698,2]
[324838759,1714367441906,-500.0,0.00013698,2]
[324838762,1714367441915,-500.0,0.00013698,2]
[324838764,1714367441925,-500.0,0.00013698,2]
[324838765,1714367441934,-500.0,0.00013698,2]
[324838768,1714367441943,-422.037697,0.00013698,2]
[324838769,1714367441952,-500.0,0.00013698,2]
[324838771,1714367441962,-1027.3,0.00013698,2]
[324838773,1714367441971,-3320.84,0.00013698,2]
[324838775,1714367441980,-797.55,0.00013698,2]
[324838777,1714367441990,-578.58,0.00013698,2]
[324838780,1714367441999,-500.0,0.00013698,2]
[324838781,1714367442008,-526.89095114,0.00013698,2]
[324838784,1714367442017,-622.06,0.00013698,2]
[324838785,1714367442027,-500.0,0.00013698,2]
[324838788,1714367442036,-2236.22,0.00013698,2]
[324838789,1714367442045,-709.27,0.00013698,2]
[324838791,1714367442055,-500.0,0.00013698,2]
[324838793,1714367442064,-4369.94,0.00013698,2]
[324838795,1714367442073,-500.0,0.00013698,2]
[324838797,1714367442083,-6482.0,0.00013698,2]
[324838800,1714367442093,-500.0,0.00013698,2]
[324838802,1714367442102,-1119.19,0.00013698,2]
[324838804,1714367442111,-500.0,0.00013698,2]
[324838806,1714367442120,-500.0,0.00013698,2]
[324838807,1714367442129,-500.0,0.00013698,2]
[324838809,1714367442139,-668.64,0.00013698,2]
[324838812,1714367442149,-500.0,0.00013698,2]
[324838813,1714367442158,-500.0,0.00013698,2]
[324838815,1714367442167,-500.0,0.00013698,2]
[324838818,1714367442177,-695.73,0.00013698,2]
[324838819,1714367442186,-905.67,0.00013698,2]
[324838821,1714367442195,-500.0,0.00013698,2]
[324838823,1714367442205,-1718.34,0.00013698,2]
[324838825,1714367442214,-273.23797331,0.00013698,2]
[324838827,1714367442223,-500.0,0.00013698,2]
[324838829,1714367442232,-530.56,0.00013698,2]
[324838831,1714367442241,-500.0,0.00013698,2]
[324838833,1714367442250,-500.0,0.00013698,2]
[324838835,1714367442259,-500.0,0.00013698,2]
[324838837,1714367442269,-3135.06,0.00013698,2]
[324838839,1714367442278,-687.07,0.00013698,2]
[324838841,1714367442288,-500.0,0.00013698,2]
[324838843,1714367442297,-500.0,0.00013698,2]
[324838845,1714367442307,-500.0,0.00013698,2]
[324838847,1714367442316,-544.34,0.00013698,2]
[324838849,1714367442325,-500.0,0.00013698,2]
[324838851,1714367442334,-518.51,0.00013698,2]
[324838854,1714367442344,-500.0,0.00013698,2]
[324838855,1714367442353,-500.0,0.00013698,2]
[324838857,1714367442362,-1500.37,0.00013698,2]
[324838859,1714367442371,-849.57,0.00013698,2]
[324838862,1714367442380,-511.11,0.00013698,2]
[324838864,1714367442390,-981.09,0.00013698,2]
[324838865,1714367442399,-500.0,0.00013698,2]
[324838867,1714367442408,-447.16717039,0.00013698,2]
[324838869,1714367442417,-500.0,0.00013698,2]
[324838871,1714367442427,-500.0,0.00013698,2]
[324838873,1714367442436,-653.41,0.00013698,2]
[324838875,1714367442446,-500.0,0.00013698,2]
[324838877,1714367442455,-239.75011522,0.00013698,2]
[324838880,1714367442464,-1044.72,0.00013698,2]
[324838882,1714367442474,-624.67,0.00013698,2]
[324838883,1714367442483,-500.0,0.00013698,2]
[324838885,1714367442492,-1650.76,0.00013698,2]
[324838888,1714367442502,-500.0,0.00013698,2]
[324838889,1714367442515,-500.0,0.00013698,2]
[324838892,1714367442525,-592.35,0.00013698,2]
[324838893,1714367442534,-620.24,0.00013698,2]
[324838896,1714367442545,-500.0,0.00013698,2]
[324838898,1714367442555,-16935.32,0.00013698,2]
[324838900,1714367442564,-3418.37,0.00013698,2]
[324838901,1714367442574,-500.0,0.00013698,2]
[324838904,1714367442583,-13115.8,0.00013698,2]
[324838906,1714367442595,-2882.43,0.00013698,2]
[324838908,1714367442604,-5844.82,0.00013698,2]
[324838910,1714367442613,-500.0,0.00013698,2]
[324838912,1714367442623,-500.0,0.00013698,2]
[324838914,1714367442631,-801.08,0.00013698,2]
[324838916,1714367442641,-1396.69,0.00013698,2]
[324838918,1714367442649,-1934.98,0.00013698,2]
[324838920,1714367442658,-234.68882018,0.00013698,2]
[324838922,1714367442667,-500.0,0.00013698,2]
[324838924,1714367442676,-500.0,0.00013698,2]
[324838926,1714367442686,-500.0,0.00013698,2]
[324838928,1714367442695,-657.18,0.00013698,2]
[324838930,1714367442703,-500.0,0.00013698,2]
[324838932,1714367442713,-500.0,0.00013698,2]
[324838933,1714367442722,-874.76,0.00013698,2]
[324838936,1714367442731,-779.52,0.00013698,2]
[324838938,1714367442740,-5997.29,0.00013698,2]
[324838940,1714367442749,-500.0,0.00013698,2]
[324838941,1714367442758,-500.0,0.00013698,2]
[324838944,1714367442768,-1573.79,0.00013698,2]
[324838946,1714367442777,-500.0,0.00013698,2]
[324838948,1714367442786,-500.0,0.00013698,2]
[324838949,1714367442795,-13275.48,0.00013698,2]
[324838951,1714367442804,-500.0,0.00013698,2]
[324838953,1714367442813,-543.56,0.00013698,2]
[324838955,1714367442822,-500.0,0.00013698,2]
[324838957,1714367442831,-641.73,0.00013698,2]
[324838959,1714367442840,-2844.79,0.00013698,2]
[324838961,1714367442850,-1682.544553,0.00013699,2]
[324838963,1714367442859,-4733.536865,0.00013699,2]
[324838965,1714367442868,-7537.3836021,0.00013699,2]
[324838967,1714367442877,-3000.0,0.00013699,2]
[324838969,1714367442887,-166.666666,0.00013699,2]
[324838971,1714367442897,-155.16299351,0.000137,2]
[324838973,1714367442906,-1000.0,0.00013702,2]
[324838975,1714367442915,-1000.0,0.00013707,2]
[324838977,1714367442925,-1000.0,0.00013715,2]
[324838980,1714367442934,-1000.0,0.00013741,2]
[324838982,1714367442943,-1000.0,0.0001375,2]
[324838984,1714367442952,-300.0,0.00013759,2]
[324838986,1714367442961,-472.94753452,0.00013776,2]
[324838988,1714367442970,-730.61014924,0.000138,2]
[324838990,1714367442979,-153.0,0.000138,2]
[324838992,1714367442988,-154.7790374,0.000138,2]
[324838994,1714367442997,-1000.0,0.00013839,2]
[324838996,1714367443006,-1000.0,0.00013861,2]
[324838998,1714367443015,-485.85792083,0.00013871,2]
[324839000,1714367443024,-44444.0,0.00013872,2]
[324839002,1714367443033,-2919.0,0.000139,2]
[324839005,1714367443044,-155.45662976,0.0001397,2]
[324839006,1714367443052,-1773.40663907,0.0001397,2]
[324839007,1714367443061,-151.0,0.0001397,2]
[324839008,1714367443070,-156.560225,0.0001397,2]
[324839010,1714367443079,-151.0,0.0001397,2]
[324839012,1714367443088,-555.757425,0.0001397,2]
[324839014,1714367443097,-555.757425,0.0001397,2]
[324839016,1714367443107,-155.45510198,0.00013971,2]
[324839018,1714367443116,-4127.59,0.00013972,2]
[324839020,1714367443126,-500.0,0.00013972,2]
[324839022,1714367443135,-500.0,0.00013972,2]
[324839025,1714367443144,-778.98,0.00013972,2]
[324839026,1714367443153,-500.0,0.00013972,2]
[324839027,1714367443162,-500.0,0.00013972,2]
[324839028,1714367443171,-500.0,0.00013972,2]
[324839029,1714367443180,-500.0,0.00013972,2]
[324839030,1714367443189,-500.0,0.00013972,2]
[324839031,1714367443199,-500.0,0.00013972,2]
[324839032,1714367443208,-666.1,0.00013972,2]
[324839033,1714367443217,-500.0,0.00013972,2]
[324839034,1714367443226,-1429.43,0.00013972,2]
[324839036,1714367443235,-384.08600423,0.00013972,2]
[324839038,1714367443244,-500.0,0.00013972,2]
[324839039,1714367443253,-500.0,0.00013972,2]
[324839041,1714367443262,-500.0,0.00013972,2]
[324839042,1714367443271,-497.91020622,0.00013972,2]
[324839043,1714367443280,-173.179915,0.00013972,2]
[324839044,1714367443289,-500.0,0.00013972,2]
[324839045,1714367443299,-280.6996627,0.00013972,2]
[324839046,1714367443309,-500.0,0.00013972,2]
[324839047,1714367443318,-500.0,0.00013972,2]
[324839048,1714367443327,-500.0,0.00013972,2]
[324839049,1714367443337,-640.79609336,0.00013972,2]
[324839050,1714367443347,-773.61,0.00013972,2]
[324839051,1714367443357,-500.0,0.00013972,2]
[324839052,1714367443367,-500.0,0.00013972,2]
[324839053,1714367443376,-500.0,0.00013972,2]
[324839054,1714367443385,-500.0,0.00013972,2]
[324839055,1714367443395,-870.92,0.00013972,2]
[324839056,1714367443406,-500.0,0.00013972,2]
[324839057,1714367443415,-897.06,0.00013972,2]
[324839058,1714367443424,-500.0,0.00013972,2]
[324839059,1714367443434,-500.0,0.00013972,2]
[324839060,1714367443443,-500.0,0.00013972,2]
[324839061,1714367443452,-500.0,0.00013972,2]
[324839063,1714367443461,-795.1,0.00013972,2]
[324839064,1714367443470,-689.64,0.00013972,2]
[324839065,1714367443480,-500.0,0.00013972,2]
[324839066,1714367443489,-500.0,0.00013972,2]
[324839067,1714367443499,-500.0,0.00013972,2]
[324839068,1714367443509,-500.0,0.00013972,2]
[324839069,1714367443522,-500.0,0.00013972,2]
[324839070,1714367443531,-1662.6,0.00013972,2]
[324839071,1714367443541,-500.0,0.00013972,2]
[324839072,1714367443551,-500.0,0.00013972,2]
[324839073,1714367443560,-763.46,0.00013972,2]
[324839074,1714367443569,-151.0,0.00013972,2]
[324839075,1714367443579,-151.0,0.00013972,2]
[324839076,1714367443589,-151.0,0.00013972,2]
[324839077,1714367443707,-500.0,0.00013972,2]
[324839078,1714367443717,-619.42,0.00013972,2]
[324839079,1714367443727,-500.0,0.00013972,2]
[324839080,1714367443736,-500.0,0.00013972,2]
[324839082,1714367443745,-500.0,0.00013972,2]
[324839083,1714367443754,-500.0,0.00013972,2]
[324839084,1714367443763,-334.52551577,0.00013972,2]
[324839085,1714367443772,-584.32,0.00013972,2]
[324839087,1714367443782,-528.80802159,0.00013972,2]
[324839088,1714367443791,-500.0,0.00013972,2]
[324839089,1714367443801,-222.10843677,0.00013972,2]
[324839090,1714367443811,-605.44,0.00013972,2]
[324839091,1714367443821,-500.0,0.00013972,2]
[324839092,1714367443831,-500.0,0.00013972,2]
[324839093,1714367443841,-500.0,0.00013972,2]
[324839094,1714367443850,-636.35756327,0.00013972,2]
[324839095,1714367443860,-167.86287391,0.00013972,2]
[324839096,1714367443870,-500.0,0.00013972,2]
[324839097,1714367443879,-500.0,0.00013972,2]
[324839098,1714367443889,-500.0,0.00013972,2]
[324839099,1714367443898,-690.63,0.00013972,2]
[324839100,1714367443908,-1983.16,0.00013972,2]
[324839101,1714367443917,-500.0,0.00013972,2]
[324839102,1714367443927,-500.0,0.00013972,2]
[324839103,1714367443936,-535.26,0.00013972,2]
[324839104,1714367443946,-151.0,0.00013972,2]
[324839105,1714367443955,-151.0,0.00013972,2]
[324839106,1714367443965,-151.0,0.00013972,2]
[324839107,1714367443974,-171.974023,0.00013972,2]
[324839108,1714367443983,-564.93,0.00013972,2]
[324839109,1714367443993,-500.0,0.00013972,2]
[324839110,1714367444002,-500.0,0.00013972,2]
[324839111,1714367444012,-500.0,0.00013972,2]
[324839112,1714367444021,-500.0,0.00013972,2]
[324839113,1714367444031,-500.0,0.00013972,2]
[324839114,1714367444042,-500.0,0.00013972,2]
[324839115,1714367444052,-500.0,0.00013972,2]
[324839116,1714367444061,-1116.9,0.00013972,2]
[324839117,1714367444072,-500.0,0.00013972,2]
[324839118,1714367444081,-1085.76,0.00013972,2]
[324839119,1714367444092,-151.0,0.00013972,2]
[324839120,1714367444102,-151.0,0.00013972,2]
[324839121,1714367444111,-500.0,0.00013972,2]
[324839122,1714367444120,-151.0,0.00013972,2]
[324839123,1714367444129,-500.0,0.00013972,2]
[324839124,1714367444138,-151.0,0.00013972,2]
[324839125,1714367444148,-500.0,0.00013972,2]
[324839126,1714367444157,-500.0,0.00013972,2]
[324839127,1714367444166,-500.0,0.00013972,2]
[324839128,1714367444175,-500.0,0.00013972,2]
[324839129,1714367444185,-500.0,0.00013972,2]
[324839130,1714367444194,-568.21,0.00013972,2]
[324839131,1714367444204,-500.0,0.00013972,2]
[324839132,1714367444213,-500.0,0.00013972,2]
[324839133,1714367444222,-500.0,0.00013972,2]
[324839134,1714367444231,-500.0,0.00013972,2]
[324839135,1714367444241,-936.17,0.00013972,2]
[324839136,1714367444250,-680.87,0.00013972,2]
[324839137,1714367444259,-500.0,0.00013972,2]
[324839138,1714367444268,-500.0,0.00013972,2]
[324839139,1714367444278,-741.52,0.00013972,2]
[324839140,1714367444286,-500.0,0.00013972,2]
[324839141,1714367444296,-1038.98,0.00013972,2]
[324839142,1714367444305,-500.0,0.00013972,2]
[324839143,1714367444314,-500.0,0.00013972,2]
[324839144,1714367444323,-500.0,0.00013972,2]
[324839145,1714367444332,-536.09,0.00013972,2]
[324839146,1714367444341,-500.0,0.00013972,2]
[324839147,1714367444350,-649.43,0.00013972,2]
[324839148,1714367444359,-500.0,0.00013972,2]
[324839149,1714367444369,-500.0,0.00013972,2]
[324839150,1714367444378,-500.0,0.00013972,2]
[324839151,1714367444387,-500.0,0.00013972,2]
[324839152,1714367444396,-500.0,0.00013972,2]
[324839153,1714367444406,-500.0,0.00013972,2]
[324839154,1714367444415,-693.62,0.00013972,2]
[324839155,1714367444424,-509.04930252,0.00013972,2]
[324839156,1714367444433,-500.0,0.00013972,2]
[324839157,1714367444442,-500.0,0.00013972,2]
[324839158,1714367444451,-500.0,0.00013972,2]
[324839159,1714367444460,-500.0,0.00013972,2]
[324839160,1714367444469,-574.34,0.00013972,2]
[324839161,1714367444478,-1443.82,0.00013972,2]
[324839162,1714367444488,-899.21,0.00013972,2]
[324839163,1714367444497,-500.0,0.00013972,2]
[324839164,1714367444506,-858.23,0.00013972,2]
[324839165,1714367444520,-500.0,0.00013972,2]
[324839166,1714367444529,-951.81,0.00013972,2]
[324839167,1714367444538,-500.0,0.00013972,2]
[324839168,1714367444549,-1349.75,0.00013972,2]
[324839169,1714367444558,-571.41,0.00013972,2]
[324839170,1714367444567,-1568.8,0.00013972,2]
[324839171,1714367444576,-317.14838459,0.00013972,2]
[324839172,1714367444585,-702.64,0.00013972,2]
[324839173,1714367444597,-500.0,0.00013972,2]
[324839174,1714367444607,-910.49,0.00013972,2]
[324839175,1714367444616,-500.0,0.00013972,2]
[324839176,1714367444625,-500.0,0.00013972,2]
[324839177,1714367444635,-500.0,0.00013972,2]
[324839178,1714367444645,-681.02,0.00013972,2]
[324839179,1714367444655,-500.0,0.00013972,2]
[324839180,1714367444666,-1060.4,0.00013972,2]
[324839181,1714367444676,-500.0,0.00013972,2]
[324839182,1714367444685,-151.0,0.00013972,2]
[324839183,1714367444696,-151.0,0.00013972,2]
[324839184,1714367444707,-182.360576,0.00013972,2]
[324839185,1714367444717,-328.86687613,0.00013972,2]
[324839186,1714367444727,-500.0,0.00013972,2]
[324839187,1714367444737,-500.0,0.00013972,2]
[324839188,1714367444748,-500.0,0.00013972,2]
[324839189,1714367444757,-179.3314636,0.00013972,2]
[324839190,1714367444767,-560.91673062,0.00013972,2]
[324839191,1714367444776,-500.0,0.00013972,2]
[324839192,1714367444785,-500.0,0.00013972,2]
[324839193,1714367444795,-904.33,0.00013972,2]
[324839194,1714367444803,-582.13,0.00013972,2]
[324839195,1714367444812,-500.0,0.00013972,2]
[324839196,1714367444821,-576.6,0.00013972,2]
[324839197,1714367444830,-151.0,0.00013972,2]
[324839198,1714367444839,-586.15,0.00013972,2]
[324839199,1714367444848,-500.0,0.00013972,2]
[324839200,1714367444858,-500.0,0.00013972,2]
[324839201,1714367444867,-1494.3,0.00013972,2]
[324839202,1714367444876,-959.29,0.00013972,2]
[324839203,1714367444885,-151.0,0.00013972,2]
[324839204,1714367444894,-151.0,0.00013972,2]
[324839205,1714367444903,-1623.71,0.00013972,2]
[324839206,1714367444912,-151.0,0.00013972,2]
[324839207,1714367444921,-151.0,0.00013972,2]
[324839208,1714367444930,-500.0,0.00013972,2]
[324839209,1714367444939,-573.09157035,0.00013972,2]
[324839210,1714367444947,-1218.89,0.00013972,2]
[324839211,1714367444957,-500.0,0.00013972,2]
[324839212,1714367444967,-333.62923119,0.00013972,2]
[324839213,1714367444976,-500.0,0.00013972,2]
[324839214,1714367444985,-2036.73,0.00013972,2]
[324839215,1714367444994,-500.0,0.00013972,2]
[324839216,1714367445003,-500.0,0.00013972,2]
[324839217,1714367445012,-667.49,0.00013972,2]
[324839218,1714367445024,-575.02,0.00013972,2]
[324839219,1714367445033,-151.0,0.00013972,2]
[324839220,1714367445044,-500.0,0.00013972,2]
[324839221,1714367445052,-1012.89202792,0.00013972,2]
[324839222,1714367445263,-809.76797208,0.00013972,2]
[324839223,1714367445272,-151.0,0.00013972,2]
[324839224,1714367445281,-151.0,0.00013972,2]
[324839225,1714367445292,-2012.59,0.00013972,2]
[324839226,1714367445302,-151.0,0.00013972,2]
[324839227,1714367445311,-151.0,0.00013972,2]
[324839228,1714367445321,-1116.57631194,0.00013972,2]
[324839229,1714367445332,-226.90368806,0.00013972,2]
[324839230,1714367445341,-147.0608105,0.00013972,2]
[324839231,1714367445352,-50.32543472,0.00013972,2]
[324839232,1714367445361,-321.21456528,0.00013972,2]
[324839233,1714367445372,-351.51543472,0.00013972,2]
[324839234,1714367445381,-27.42656527,0.00013972,2]
[324839235,1714367445814,-977.62343473,0.00013972,2]
[324839236,1714367445824,-1255.07,0.00013972,2]
[324839237,1714367445833,-500.0,0.00013972,2]
[324839238,1714367445842,-1468.62,0.00013972,2]
[324839239,1714367445851,-500.0,0.00013972,2]
[324839240,1714367445861,-2742.99,0.00013972,2]
[324839241,1714367445870,-500.0,0.00013972,2]
[324839242,1714367445879,-500.0,0.00013972,2]
[324839243,1714367445888,-500.0,0.00013972,2]
[324839244,1714367445898,-1597.07,0.00013972,2]
[324839245,1714367445907,-500.0,0.00013972,2]
[324839246,1714367445917,-776.43,0.00013972,2]
[324839247,1714367445926,-553.43,0.00013972,2]
[324839248,1714367445936,-547.61,0.00013972,2]
[324839249,1714367445945,-536.49,0.00013972,2]
[324839251,1714367446062,-500.0,0.00013972,2]
[324839252,1714367446072,-528.86,0.00013972,2]
[324839253,1714367446082,-748.22,0.00013972,2]
[324839255,1714367446091,-500.0,0.00013972,2]
[324839257,1714367446100,-500.0,0.00013972,2]
[324839259,1714367446109,-151.0,0.00013972,2]
[324839261,1714367446119,-500.0,0.00013972,2]
[324839263,1714367446128,-666.03,0.00013972,2]
[324839265,1714367446137,-500.0,0.00013972,2]
[324839267,1714367446147,-500.0,0.00013972,2]
[324839269,1714367446156,-217.77486337,0.00013972,2]
[324839297,1714367805189,154.79876161,9.999e-05,2]
[324839298,1714367825104,150.0,0.000266,120]
[324839299,1714368227744,154.79876161,9.999e-05,2]
[324839303,1714368341160,-300.0,0.00012389,2]
[324839304,1714368341180,-300.0,0.00012389,2]
[324839305,1714368341198,-6949.28615531,0.00012389,2]
[324839306,1714368341218,-24900.0,0.0001239,2]
[324839307,1714368341236,-642.74611366,0.00013495,2]
[324839308,1714368341255,-420.0,0.00013595,2]
[324839309,1714368341274,-305.41295592,0.00013598,2]
[324839310,1714368341292,-2000.0,0.00013598,2]
[324839311,1714368341311,-420.0,0.00013628,2]
[324839312,1714368341329,-14408.67005025,0.00013696,2]
[324839313,1714368341348,-155.47780541,0.00013696,2]
[324839314,1714368341367,-944.17717217,0.00013696,2]
[324839315,1714368341385,-285.18023274,0.00013696,2]
[324839316,1714368341403,-162.69679979,0.00013696,2]
[324839317,1714368341421,-155.33186903,0.00013696,2]
[324839318,1714368341440,-599.27307542,0.00013696,2]
[324839319,1714368341457,-622.9170133,0.00013696,2]
[324839320,1714368341475,-531.80753538,0.00013696,2]
[324839321,1714368341493,-155.34687858,0.00013696,2]
[324839322,1714368341512,-625.28044777,0.00013697,2]
[324839323,1714368341531,-500.0,0.00013698,2]
[324839324,1714368341550,-500.0,0.00013698,2]
[324839325,1714368341569,-521.1072121,0.00013698,2]
[324839326,1714368341588,-430.17723298,0.00013698,2]
[324839327,1714368341607,-500.0,0.00013698,2]
[324839328,1714368341626,-500.0,0.00013698,2]
[324839329,1714368341645,-500.0,0.00013698,2]
[324839330,1714368341663,-610.59,0.00013698,2]
[324839331,1714368341681,-1310.31,0.00013698,2]
[324839332,1714368341699,-503.84790354,0.00013698,2]
[324839333,1714368341718,-500.0,0.00013698,2]
[324839334,1714368341736,-500.0,0.00013698,2]
[324839335,1714368341758,-500.0,0.00013698,2]
[324839336,1714368341778,-500.0,0.00013698,2]
[324839337,1714368341799,-500.0,0.00013698,2]
[324839338,1714368341818,-500.0,0.00013698,2]
[324839339,1714368341837,-709.15,0.00013698,2]
[324839340,1714368341855,-500.0,0.00013698,2]
[324839341,1714368341873,-500.0,0.00013698,2]
[324839342,1714368341891,-822.31,0.00013698,2]
[324839343,1714368341909,-798.35,0.00013698,2]
[324839344,1714368341927,-500.0,0.00013698,2]
[324839345,1714368341946,-500.0,0.00013698,2]
[324839346,1714368341964,-632.17,0.00013698,2]
[324839347,1714368341983,-500.0,0.00013698,2]
[324839348,1714368342002,-500.0,0.00013698,2]
[324839349,1714368342022,-728.84,0.00013698,2]
[324839350,1714368342041,-1524.05,0.00013698,2]
[324839351,1714368342060,-500.0,0.00013698,2]
[324839352,1714368342079,-500.0,0.00013698,2]
[324839353,1714368342098,-500.0,0.00013698,2]
[324839354,1714368342117,-699.84,0.00013698,2]
[324839355,1714368342136,-500.0,0.00013698,2]
[324839356,1714368342156,-500.0,0.00013698,2]
[324839357,1714368342175,-500.0,0.00013698,2]
[324839358,1714368342194,-500.0,0.00013698,2]
[324839359,1714368342212,-554.47489093,0.00013698,2]
[324839360,1714368342231,-500.0,0.00013698,2]
[324839361,1714368342249,-535.63,0.00013698,2]
[324839362,1714368342269,-567.81,0.00013698,2]
[324839363,1714368342287,-500.0,0.00013698,2]
[324839364,1714368342306,-554.98,0.00013698,2]
[324839365,1714368342325,-500.0,0.00013698,2]
[324839366,1714368342344,-500.0,0.00013698,2]
[324839367,1714368342364,-500.0,0.00013698,2]
[324839368,1714368342382,-633.07,0.00013698,2]
[324839369,1714368342401,-598.74978018,0.00013698,2]
[324839370,1714368342420,-266.75234888,0.00013698,2]
[324839371,1714368342438,-500.0,0.00013698,2]
[324839372,1714368342457,-448.5935618,0.00013698,2]
[324839373,1714368342477,-500.0,0.00013698,2]
[324839374,1714368342497,-1817.9,0.00013698,2]
[324839375,1714368342517,-500.0,0.00013698,2]
[324839376,1714368342535,-500.0,0.00013698,2]
[324839377,1714368342554,-500.0,0.00013698,2]
[324839378,1714368342573,-500.0,0.00013698,2]
[324839379,1714368342592,-500.0,0.00013698,2]
[324839380,1714368342611,-454.08286871,0.00013698,2]
[324839381,1714368342630,-500.0,0.00013698,2]
[324839382,1714368342650,-500.0,0.00013698,2]
[324839383,1714368342670,-471.65007734,0.00013698,2]
[324839384,1714368342721,-520.86,0.00013698,2]
[324839385,1714368342740,-500.0,0.00013698,2]
[324839386,1714368342762,-500.0,0.00013698,2]
[324839387,1714368342785,-500.0,0.00013698,2]
[324839388,1714368342807,-500.0,0.00013698,2]
[324839389,1714368342827,-500.0,0.00013698,2]
[324839390,1714368342849,-500.0,0.00013698,2]
[324839391,1714368342869,-500.0,0.00013698,2]
[324839392,1714368342888,-480.36104553,0.00013698,2]
[324839393,1714368343044,-502.90910909,0.00013698,2]
[324839394,1714368343065,-1041.62,0.00013698,2]
[324839395,1714368343085,-500.0,0.00013698,2]
[324839396,1714368343104,-500.0,0.00013698,2]
[324839397,1714368343122,-500.0,0.00013698,2]
[324839398,1714368343141,-500.0,0.00013698,2]
[324839399,1714368343160,-500.0,0.00013698,2]
[324839400,1714368343178,-500.0,0.00013698,2]
[324839401,1714368343196,-952.39,0.00013698,2]
[324839402,1714368343215,-500.0,0.00013698,2]
[324839403,1714368343233,-500.0,0.00013698,2]